[Event "Late-Titled-Tuesday-Blitz-March-12-2024"]
[Site "Chess.com"]
[Date "2024.03.12"]
[Round "4"]
[White "noblerone"]
[Black "KaydenTroffChess"]
[Result "0-1"]
[WhiteElo "2592"]
[BlackElo "2819"]
[TimeControl "180+1"]
[EndTime "14:39:11 PDT"]
[Termination "KaydenTroffChess won by checkmate"]

1. d4 {[%clk 0:03:00.9]} 1... Nf6 {[%clk 0:02:59.2]} 2. Nf3 {[%clk 0:03:01.1]}
2... g6 {[%clk 0:02:59]} 3. Bg5 {[%clk 0:03:01.5]} 3... Bg7 {[%clk 0:02:59]} 4.
Nbd2 {[%clk 0:03:00]} 4... d5 {[%clk 0:02:58.7]} 5. e3 {[%clk 0:02:59.7]} 5...
O-O {[%clk 0:02:58]} 6. Be2 {[%clk 0:03:00.1]} 6... Nbd7 {[%clk 0:02:58.3]} 7.
O-O {[%clk 0:03:00.3]} 7... Re8 {[%clk 0:02:58.9]} 8. c4 {[%clk 0:02:57.1]} 8...
c5 {[%clk 0:02:56.5]} 9. Rc1 {[%clk 0:02:52.6]} 9... cxd4 {[%clk 0:02:55.9]} 10.
exd4 {[%clk 0:02:52.2]} 10... dxc4 {[%clk 0:02:52.7]} 11. Nxc4 {[%clk
0:02:53.1]} 11... Nb6 {[%clk 0:02:51]} 12. Nce5 {[%clk 0:02:46]} 12... Be6
{[%clk 0:02:49.9]} 13. Bb5 {[%clk 0:02:38]} 13... Rf8 {[%clk 0:02:46.2]} 14. b3
{[%clk 0:02:29]} 14... Qd5 {[%clk 0:02:38.7]} 15. Bc4 {[%clk 0:02:25.8]} 15...
Nxc4 {[%clk 0:02:37.9]} 16. bxc4 {[%clk 0:02:26.7]} 16... Qa5 {[%clk 0:02:38]}
17. Qb3 {[%clk 0:02:17.8]} 17... Rab8 {[%clk 0:02:22.7]} 18. h3 {[%clk 0:02:10]}
18... Rfe8 {[%clk 0:01:44.5]} 19. Rfd1 {[%clk 0:01:42.1]} 19... Qa6 {[%clk
0:01:33.6]} 20. d5 {[%clk 0:01:33.8]} 20... Bf5 {[%clk 0:01:33.7]} 21. Nd4
{[%clk 0:01:13.7]} 21... Ne4 {[%clk 0:01:13.4]} 22. Nxf5 {[%clk 0:01:10.2]}
22... gxf5 {[%clk 0:00:46.5]} 23. Bf4 {[%clk 0:01:02.5]} 23... Rbc8 {[%clk
0:00:44.1]} 24. Nd3 {[%clk 0:00:49.4]} 24... Bd4 {[%clk 0:00:36.5]} 25. Be3
{[%clk 0:00:36.5]} 25... Bxe3 {[%clk 0:00:32.7]} 26. fxe3 {[%clk 0:00:37.4]}
26... Qh6 {[%clk 0:00:21.8]} 27. Nf4 {[%clk 0:00:34.7]} 27... b6 {[%clk
0:00:21.5]} 28. Qd3 {[%clk 0:00:32.5]} 28... Qf6 {[%clk 0:00:17.4]} 29. Rf1
{[%clk 0:00:30.4]} 29... Qe5 {[%clk 0:00:16.8]} 30. Rf3 {[%clk 0:00:23.8]} 30...
Kh8 {[%clk 0:00:17]} 31. Qd4 {[%clk 0:00:20.2]} 31... Qxd4 {[%clk 0:00:16.6]}
32. exd4 {[%clk 0:00:21.1]} 32... Rg8 {[%clk 0:00:15.3]} 33. Re3 {[%clk
0:00:14.7]} 33... Rg3 {[%clk 0:00:13.4]} 34. Rxg3 {[%clk 0:00:11.6]} 34... Nxg3
{[%clk 0:00:14.3]} 35. Kf2 {[%clk 0:00:12.4]} 35... Ne4+ {[%clk 0:00:14.5]} 36.
Ke3 {[%clk 0:00:11.7]} 36... Kg7 {[%clk 0:00:13.9]} 37. g4 {[%clk 0:00:11.1]}
37... Nd6 {[%clk 0:00:14.2]} 38. c5 {[%clk 0:00:11.3]} 38... fxg4 {[%clk
0:00:14.3]} 39. hxg4 {[%clk 0:00:09.5]} 39... bxc5 {[%clk 0:00:14.3]} 40. dxc5
{[%clk 0:00:09.7]} 40... Nb5 {[%clk 0:00:13.5]} 41. a4 {[%clk 0:00:07.7]} 41...
Nc7 {[%clk 0:00:12.4]} 42. Kd4 {[%clk 0:00:06.8]} 42... Rd8 {[%clk 0:00:12.6]}
43. Kc4 {[%clk 0:00:06.7]} 43... Kf6 {[%clk 0:00:12.5]} 44. Rf1 {[%clk 0:00:06]}
44... Kg5 {[%clk 0:00:12.6]} 45. Nh3+ {[%clk 0:00:03.9]} 45... Kxg4 {[%clk
0:00:12.6]} 46. Nf2+ {[%clk 0:00:04.8]} 46... Kf3 {[%clk 0:00:12.5]} 47. Nd3+
{[%clk 0:00:05]} 47... Ke3 {[%clk 0:00:12.1]} 48. Rxf7 {[%clk 0:00:05.2]} 48...
Nxd5 {[%clk 0:00:12.1]} 49. Rxh7 {[%clk 0:00:05.2]} 49... e6 {[%clk 0:00:10.8]}
50. Rh3+ {[%clk 0:00:05]} 50... Ke2 {[%clk 0:00:10.4]} 51. Rh2+ {[%clk
0:00:05.3]} 51... Ke3 {[%clk 0:00:10.5]} 52. Rh3+ {[%clk 0:00:05.8]} 52... Kd2
{[%clk 0:00:11]} 53. Rh2+ {[%clk 0:00:06.1]} 53... Kd1 {[%clk 0:00:10.3]} 54.
Rh1+ {[%clk 0:00:06.4]} 54... Ke2 {[%clk 0:00:09.7]} 55. Rh2+ {[%clk 0:00:07.1]}
55... Kf3 {[%clk 0:00:10.4]} 56. Rf2+ {[%clk 0:00:06.9]} 56... Ke3 {[%clk
0:00:10.7]} 57. Rf7 {[%clk 0:00:06.1]} 57... Ke4 {[%clk 0:00:08.7]} 58. Rxa7
{[%clk 0:00:04.6]} 58... Ne3+ {[%clk 0:00:09]} 59. Kb5 {[%clk 0:00:03.9]} 59...
Rxd3 {[%clk 0:00:09.7]} 60. c6 {[%clk 0:00:04.3]} 60... Rb3+ {[%clk 0:00:10.4]}
61. Kc5 {[%clk 0:00:04.1]} 61... e5 {[%clk 0:00:10.5]} 62. Ra8 {[%clk
0:00:03.8]} 62... Rc3+ {[%clk 0:00:10.8]} 63. Kb6 {[%clk 0:00:04.1]} 63... Nd5+
{[%clk 0:00:10.9]} 64. Kb7 {[%clk 0:00:04.6]} 64... Kd4 {[%clk 0:00:11.5]} 65.
Rd8 {[%clk 0:00:04.2]} 65... e4 {[%clk 0:00:12]} 66. a5 {[%clk 0:00:04.2]} 66...
e3 {[%clk 0:00:12.4]} 67. a6 {[%clk 0:00:04.6]} 67... e2 {[%clk 0:00:12.7]} 68.
Re8 {[%clk 0:00:05.2]} 68... Ne3 {[%clk 0:00:11.3]} 69. Rd8+ {[%clk 0:00:05.1]}
69... Ke4 {[%clk 0:00:11.8]} 70. a7 {[%clk 0:00:05.1]} 70... e1=Q {[%clk
0:00:11.9]} 71. a8=Q {[%clk 0:00:05.6]} 71... Qb1+ {[%clk 0:00:12.5]} 72. Kc8
{[%clk 0:00:06.1]} 72... Kf4 {[%clk 0:00:08]} 73. Rf8+ {[%clk 0:00:05.7]} 73...
Nf5 {[%clk 0:00:07.8]} 74. c7 {[%clk 0:00:05.1]} 74... Qb4 {[%clk 0:00:07.4]}
75. Qb8 {[%clk 0:00:04.1]} 75... Qxf8+ {[%clk 0:00:06.9]} 76. Kb7 {[%clk
0:00:04.3]} 76... Rb3+ {[%clk 0:00:07.8]} 77. Ka7 {[%clk 0:00:02.5]} 77... Qa3#
{[%clk 0:00:08]} 0-1

[Event "Late-Titled-Tuesday-Blitz-March-12-2024"]
[Site "Chess.com"]
[Date "2024.03.12"]
[Round "4"]
[White "Fandorine"]
[Black "Polish_fighter3000"]
[Result "0-1"]
[WhiteElo "2952"]
[BlackElo "3140"]
[TimeControl "180+1"]
[EndTime "14:39:12 PDT"]
[Termination "Polish_fighter3000 won by checkmate"]

1. d4 {[%clk 0:03:00.9]} 1... Nf6 {[%clk 0:02:58.4]} 2. c4 {[%clk 0:03:01]} 2...
g6 {[%clk 0:02:58.6]} 3. Nc3 {[%clk 0:03:00.7]} 3... d5 {[%clk 0:02:59.2]} 4.
cxd5 {[%clk 0:03:00.7]} 4... Nxd5 {[%clk 0:03:00.1]} 5. e4 {[%clk 0:03:00.9]}
5... Nxc3 {[%clk 0:03:00.6]} 6. bxc3 {[%clk 0:03:01.8]} 6... Bg7 {[%clk
0:03:01]} 7. Bc4 {[%clk 0:03:02.2]} 7... c5 {[%clk 0:03:01.1]} 8. Ne2 {[%clk
0:03:02.9]} 8... O-O {[%clk 0:03:00.6]} 9. Be3 {[%clk 0:03:03.4]} 9... Nc6
{[%clk 0:03:00.5]} 10. Rc1 {[%clk 0:03:04.1]} 10... e6 {[%clk 0:02:58]} 11. h4
{[%clk 0:03:03.4]} 11... h5 {[%clk 0:02:50.9]} 12. Bg5 {[%clk 0:03:03.2]} 12...
Qa5 {[%clk 0:02:49.1]} 13. O-O {[%clk 0:03:01.1]} 13... b5 {[%clk 0:02:44.4]}
14. Bb3 {[%clk 0:02:55.9]} 14... Re8 {[%clk 0:01:52.4]} 15. e5 {[%clk
0:02:49.6]} 15... Bb7 {[%clk 0:01:48.8]} 16. Nf4 {[%clk 0:02:47.4]} 16... cxd4
{[%clk 0:01:18.5]} 17. cxd4 {[%clk 0:02:47.2]} 17... Qb6 {[%clk 0:01:19.2]} 18.
d5 {[%clk 0:02:04.5]} 18... Nxe5 {[%clk 0:01:18.5]} 19. dxe6 {[%clk 0:02:03.4]}
19... fxe6 {[%clk 0:01:18.7]} 20. Bc2 {[%clk 0:01:41.7]} 20... Rad8 {[%clk
0:00:42.8]} 21. Bxd8 {[%clk 0:01:36.2]} 21... Rxd8 {[%clk 0:00:43.7]} 22. Qe2
{[%clk 0:01:36.1]} 22... Rd4 {[%clk 0:00:43.5]} 23. Qe3 {[%clk 0:00:58.7]} 23...
Kf7 {[%clk 0:00:42.3]} 24. Bxg6+ {[%clk 0:00:40.5]} 24... Nxg6 {[%clk
0:00:26.4]} 25. Rc7+ {[%clk 0:00:39.8]} 25... Ne7 {[%clk 0:00:26.4]} 26. Nxe6
{[%clk 0:00:14.5]} 26... Qxe6 {[%clk 0:00:16.7]} 27. Rxb7 {[%clk 0:00:14.6]}
27... Bf6 {[%clk 0:00:10.8]} 28. Rxb5 {[%clk 0:00:06.6]} 28... Qxe3 {[%clk
0:00:10.1]} 29. fxe3 {[%clk 0:00:06.7]} 29... Rxh4 {[%clk 0:00:10.7]} 30. Ra5
{[%clk 0:00:06.8]} 30... Re4 {[%clk 0:00:10.2]} 31. Ra6 {[%clk 0:00:06]} 31...
Nd5 {[%clk 0:00:03.8]} 32. Rf5 {[%clk 0:00:06.4]} 32... Nb6 {[%clk 0:00:04.5]}
33. Rxh5 {[%clk 0:00:04.4]} 33... Rxe3 {[%clk 0:00:03.7]} 34. Rxa7+ {[%clk
0:00:03.2]} 34... Kg6 {[%clk 0:00:04.2]} 35. Rh3 {[%clk 0:00:02.3]} 35... Re2
{[%clk 0:00:03.3]} 36. Kf1 {[%clk 0:00:03]} 36... Rc2 {[%clk 0:00:02.9]} 37.
Rg3+ {[%clk 0:00:03.7]} 37... Kf5 {[%clk 0:00:03]} 38. Raa3 {[%clk 0:00:04.2]}
38... Nc4 {[%clk 0:00:03.1]} 39. Raf3+ {[%clk 0:00:04.5]} 39... Ke5 {[%clk
0:00:03.3]} 40. Rd3 {[%clk 0:00:04.6]} 40... Bh4 {[%clk 0:00:02.8]} 41. Rh3
{[%clk 0:00:03.3]} 41... Bg5 {[%clk 0:00:03.1]} 42. Kg1 {[%clk 0:00:02.6]} 42...
Bf4 {[%clk 0:00:03.2]} 43. Rh5+ {[%clk 0:00:02.7]} 43... Ke4 {[%clk 0:00:03.6]}
44. Rd1 {[%clk 0:00:03.2]} 44... Ne3 {[%clk 0:00:03.5]} 45. Re1 {[%clk
0:00:03.5]} 45... Rxg2+ {[%clk 0:00:04]} 46. Kh1 {[%clk 0:00:04.2]} 46... Rxa2
{[%clk 0:00:04.5]} 47. Rh3 {[%clk 0:00:04.8]} 47... Rd2 {[%clk 0:00:04.1]} 48.
Rh4 {[%clk 0:00:05.1]} 48... Kf3 {[%clk 0:00:04.4]} 49. Rh3+ {[%clk 0:00:05]}
49... Kf2 {[%clk 0:00:02.8]} 50. Rg1 {[%clk 0:00:04.1]} 50... Re2 {[%clk
0:00:02.3]} 51. Rh4 {[%clk 0:00:04.2]} 51... Kf3 {[%clk 0:00:02.9]} 52. Rh3+
{[%clk 0:00:04.5]} 52... Ke4 {[%clk 0:00:03.3]} 53. Rh4 {[%clk 0:00:04.9]} 53...
Rf2 {[%clk 0:00:03.5]} 54. Re1 {[%clk 0:00:04.3]} 54... Kf5 {[%clk 0:00:03.4]}
55. Rh3 {[%clk 0:00:03.4]} 55... Nc2 {[%clk 0:00:02.9]} 56. Rg1 {[%clk 0:00:03]}
56... Nd4 {[%clk 0:00:03.5]} 57. Rh5+ {[%clk 0:00:03.1]} 57... Ke4 {[%clk
0:00:03.6]} 58. Re1+ {[%clk 0:00:02.6]} 58... Be3 {[%clk 0:00:02.6]} 59. Rh3
{[%clk 0:00:02.8]} 59... Nf3 {[%clk 0:00:02.7]} 60. Ra1 {[%clk 0:00:02.8]} 60...
Rd2 {[%clk 0:00:02.7]} 61. Rf1 {[%clk 0:00:02.5]} 61... Ne5 {[%clk 0:00:02.5]}
62. Rh4+ {[%clk 0:00:02.8]} 62... Kd3 {[%clk 0:00:01.4]} 63. Rh3 {[%clk
0:00:03.5]} 63... Nc4 {[%clk 0:00:02.1]} 64. Re1 {[%clk 0:00:03.6]} 64... Rc2
{[%clk 0:00:02.5]} 65. Rd1+ {[%clk 0:00:03.7]} 65... Ke2 {[%clk 0:00:03]} 66.
Ra1 {[%clk 0:00:03.5]} 66... Nd2 {[%clk 0:00:03.6]} 67. Rh2+ {[%clk 0:00:03.1]}
67... Bf2 {[%clk 0:00:04.1]} 68. Ra8 {[%clk 0:00:02.7]} 68... Rc3 {[%clk
0:00:04.2]} 69. Re8+ {[%clk 0:00:03.2]} 69... Kf1 {[%clk 0:00:04.5]} 70. Rf8
{[%clk 0:00:03.2]} 70... Ne4 {[%clk 0:00:04.1]} 71. Rh7 {[%clk 0:00:02.8]} 71...
Rg3 {[%clk 0:00:03.3]} 72. Kh2 {[%clk 0:00:02.6]} 72... Rg2+ {[%clk 0:00:03.2]}
73. Kh1 {[%clk 0:00:03.2]} 73... Ng3# {[%clk 0:00:03.5]} 0-1

[Event "Late-Titled-Tuesday-Blitz-March-12-2024"]
[Site "Chess.com"]
[Date "2024.03.12"]
[Round "4"]
[White "guillembaches"]
[Black "janhelmer03"]
[Result "0-1"]
[WhiteElo "2549"]
[BlackElo "2408"]
[TimeControl "180+1"]
[EndTime "14:39:16 PDT"]
[Termination "janhelmer03 won by resignation"]

1. Nf3 {[%clk 0:03:00.9]} 1... c5 {[%clk 0:02:57.3]} 2. e4 {[%clk 0:03:00.2]}
2... Nc6 {[%clk 0:02:56.9]} 3. d4 {[%clk 0:03:00.3]} 3... cxd4 {[%clk
0:02:57.5]} 4. Nxd4 {[%clk 0:03:00.2]} 4... Nf6 {[%clk 0:02:51.3]} 5. Nc3 {[%clk
0:02:59.8]} 5... g6 {[%clk 0:02:50.5]} 6. Nxc6 {[%clk 0:02:59.1]} 6... dxc6
{[%clk 0:02:46.7]} 7. Qxd8+ {[%clk 0:02:58]} 7... Kxd8 {[%clk 0:02:47]} 8. e5
{[%clk 0:02:46.8]} 8... Ng4 {[%clk 0:02:36.8]} 9. f4 {[%clk 0:02:45]} 9... f6
{[%clk 0:02:28.8]} 10. h3 {[%clk 0:02:38.4]} 10... Nh6 {[%clk 0:02:21.8]} 11. g4
{[%clk 0:02:34]} 11... Bg7 {[%clk 0:02:13.1]} 12. exf6 {[%clk 0:02:21.3]} 12...
exf6 {[%clk 0:02:06.3]} 13. Be3 {[%clk 0:02:18.6]} 13... Re8 {[%clk 0:02:03.6]}
14. O-O-O+ {[%clk 0:02:16.1]} 14... Kc7 {[%clk 0:01:51.1]} 15. Bc5 {[%clk
0:02:14.3]} 15... Nf7 {[%clk 0:01:50.4]} 16. Bc4 {[%clk 0:01:57.4]} 16... Be6
{[%clk 0:01:38.4]} 17. Bxe6 {[%clk 0:01:57.2]} 17... Rxe6 {[%clk 0:01:38.9]} 18.
Rhe1 {[%clk 0:01:56.8]} 18... Rae8 {[%clk 0:01:37.5]} 19. Rxe6 {[%clk
0:01:56.3]} 19... Rxe6 {[%clk 0:01:38.4]} 20. Bxa7 {[%clk 0:01:41.8]} 20... f5
{[%clk 0:01:29.8]} 21. Bd4 {[%clk 0:01:35.5]} 21... Bh6 {[%clk 0:01:23.6]} 22.
g5 {[%clk 0:01:28.2]} 22... Bf8 {[%clk 0:01:02.9]} 23. Kd2 {[%clk 0:01:23]}
23... Bd6 {[%clk 0:00:27.7]} 24. Ne2 {[%clk 0:01:18]} 24... Re4 {[%clk 0:00:26]}
25. Be3 {[%clk 0:01:07.7]} 25... Nd8 {[%clk 0:00:22.9]} 26. Nc3 {[%clk 0:00:58]}
26... Re8 {[%clk 0:00:14.3]} 27. Rf1 {[%clk 0:00:51.1]} 27... Ne6 {[%clk
0:00:14.3]} 28. Ne2 {[%clk 0:00:50.5]} 28... Rd8 {[%clk 0:00:13.5]} 29. Kc3
{[%clk 0:00:48.5]} 29... Bf8 {[%clk 0:00:12.9]} 30. b4 {[%clk 0:00:44.7]} 30...
Bg7+ {[%clk 0:00:12.9]} 31. Kb3 {[%clk 0:00:43.5]} 31... Re8 {[%clk 0:00:10.6]}
32. Rf3 {[%clk 0:00:42.7]} 32... Kc8 {[%clk 0:00:10]} 33. c3 {[%clk 0:00:42]}
33... Nc7 {[%clk 0:00:10.3]} 34. Nd4 {[%clk 0:00:36.8]} 34... Re4 {[%clk
0:00:10.1]} 35. Bd2 {[%clk 0:00:30.9]} 35... Bxd4 {[%clk 0:00:08.9]} 36. cxd4
{[%clk 0:00:31.3]} 36... Rxd4 {[%clk 0:00:08.5]} 37. Bc3 {[%clk 0:00:31.6]}
37... Re4 {[%clk 0:00:08.8]} 38. h4 {[%clk 0:00:31.2]} 38... Nd5 {[%clk
0:00:09.3]} 39. Bd2 {[%clk 0:00:30.1]} 39... Rd4 {[%clk 0:00:09.4]} 40. Bc1
{[%clk 0:00:25.9]} 40... Rxb4+ {[%clk 0:00:09.2]} 41. Kc2 {[%clk 0:00:25.6]}
41... Re4 {[%clk 0:00:09.9]} 42. h5 {[%clk 0:00:24.2]} 42... b5 {[%clk
0:00:10.8]} 43. hxg6 {[%clk 0:00:23.1]} 43... hxg6 {[%clk 0:00:11.7]} 44. Bd2
{[%clk 0:00:23.3]} 44... Kb7 {[%clk 0:00:11.3]} 45. Kd3 {[%clk 0:00:23.5]} 45...
c5 {[%clk 0:00:10.6]} 46. Rh3 {[%clk 0:00:23]} 46... c4+ {[%clk 0:00:11.5]} 47.
Kc2 {[%clk 0:00:22.8]} 47... Nxf4 {[%clk 0:00:11]} 48. Rh7+ {[%clk 0:00:22.6]}
48... Kc6 {[%clk 0:00:10.8]} 49. Rh6 {[%clk 0:00:23]} 49... Re2 {[%clk
0:00:05.7]} 50. Kd1 {[%clk 0:00:20.1]} 50... Rxd2+ {[%clk 0:00:04.2]} 51. Kxd2
{[%clk 0:00:20.4]} 51... Kd5 {[%clk 0:00:04.9]} 52. Ke3 {[%clk 0:00:20.5]} 52...
Ke5 {[%clk 0:00:04.9]} 53. Rh8 {[%clk 0:00:20.7]} 53... Nd5+ {[%clk 0:00:05]}
54. Kd2 {[%clk 0:00:20.4]} 54... Kd4 {[%clk 0:00:05.6]} 55. Rg8 {[%clk
0:00:19.3]} 55... c3+ {[%clk 0:00:06]} 56. Kc2 {[%clk 0:00:19.3]} 56... Ne3+
{[%clk 0:00:06.4]} 57. Kc1 {[%clk 0:00:19.8]} 57... f4 {[%clk 0:00:06.3]} 58.
Rxg6 {[%clk 0:00:19.1]} 58... f3 {[%clk 0:00:06.3]} 59. Rf6 {[%clk 0:00:19.5]}
59... Ke4 {[%clk 0:00:06.6]} 60. g6 {[%clk 0:00:19.6]} 60... Nf5 {[%clk
0:00:07.2]} 61. Kd1 {[%clk 0:00:13.1]} 61... f2 {[%clk 0:00:05.1]} 62. Ke2
{[%clk 0:00:12.1]} 62... c2 {[%clk 0:00:05.5]} 63. Rc6 {[%clk 0:00:12.1]} 63...
Nd4+ {[%clk 0:00:05.9]} 64. Kxf2 {[%clk 0:00:12.5]} 64... Nxc6 {[%clk
0:00:06.2]} 65. g7 {[%clk 0:00:13]} 65... c1=Q {[%clk 0:00:06.7]} 66. g8=Q
{[%clk 0:00:13.9]} 66... Qe3+ {[%clk 0:00:07.1]} 67. Kf1 {[%clk 0:00:14.2]}
67... Qf3+ {[%clk 0:00:06.7]} 68. Ke1 {[%clk 0:00:14.4]} 68... Nd4 {[%clk
0:00:07.1]} 69. Qe8+ {[%clk 0:00:13.8]} 69... Kd3 {[%clk 0:00:07.3]} 70. Qg6+
{[%clk 0:00:13.1]} 70... Qe4+ {[%clk 0:00:07]} 71. Qxe4+ {[%clk 0:00:13.7]}
71... Kxe4 {[%clk 0:00:07.9]} 72. Kd2 {[%clk 0:00:14.4]} 72... Kd5 {[%clk
0:00:08]} 73. Kc3 {[%clk 0:00:15]} 73... Kc5 {[%clk 0:00:08.5]} 74. Kb2 {[%clk
0:00:14.6]} 74... Kb4 {[%clk 0:00:08.3]} 75. Ka1 {[%clk 0:00:13.1]} 75... Ka3
{[%clk 0:00:08.1]} 76. Kb1 {[%clk 0:00:13.6]} 76... Nc6 {[%clk 0:00:07.7]} 77.
Ka1 {[%clk 0:00:13.4]} 77... Nb4 {[%clk 0:00:08.2]} 78. Kb1 {[%clk 0:00:13.8]}
78... Nxa2 {[%clk 0:00:08.9]} 0-1

[Event "Late-Titled-Tuesday-Blitz-March-12-2024"]
[Site "Chess.com"]
[Date "2024.03.12"]
[Round "4"]
[White "ContrVersia"]
[Black "yaguigor"]
[Result "1-0"]
[WhiteElo "2873"]
[BlackElo "2612"]
[TimeControl "180+1"]
[EndTime "14:39:22 PDT"]
[Termination "ContrVersia won by resignation"]

1. d4 {[%clk 0:02:59.3]} 1... d5 {[%clk 0:02:57.4]} 2. c4 {[%clk 0:02:57.4]}
2... c6 {[%clk 0:02:56.8]} 3. Nf3 {[%clk 0:02:56.2]} 3... Nf6 {[%clk 0:02:56.2]}
4. Qc2 {[%clk 0:02:56.6]} 4... dxc4 {[%clk 0:02:55.6]} 5. Qxc4 {[%clk
0:02:57.5]} 5... Bf5 {[%clk 0:02:55.4]} 6. g3 {[%clk 0:02:57.1]} 6... e6 {[%clk
0:02:55.5]} 7. Bg2 {[%clk 0:02:57.5]} 7... Be7 {[%clk 0:02:55.9]} 8. O-O {[%clk
0:02:57.8]} 8... Nbd7 {[%clk 0:02:56.1]} 9. Nc3 {[%clk 0:02:57.1]} 9... O-O
{[%clk 0:02:55.8]} 10. Rd1 {[%clk 0:02:54.9]} 10... Bc2 {[%clk 0:02:52.6]} 11.
e3 {[%clk 0:02:18.6]} 11... Bxd1 {[%clk 0:02:50.7]} 12. Nxd1 {[%clk 0:02:19.5]}
12... Qc7 {[%clk 0:02:46.8]} 13. Nc3 {[%clk 0:02:16.1]} 13... e5 {[%clk
0:02:42.2]} 14. Qb3 {[%clk 0:02:04.2]} 14... exd4 {[%clk 0:02:41.2]} 15. exd4
{[%clk 0:02:03.4]} 15... Nb6 {[%clk 0:02:38.4]} 16. Bg5 {[%clk 0:01:59.7]} 16...
Nfd5 {[%clk 0:02:36.6]} 17. Bd2 {[%clk 0:01:58.6]} 17... Nxc3 {[%clk 0:02:30.5]}
18. bxc3 {[%clk 0:01:59.5]} 18... Rad8 {[%clk 0:02:27.5]} 19. a4 {[%clk
0:01:56.6]} 19... Nc8 {[%clk 0:02:23.3]} 20. Rb1 {[%clk 0:01:53.7]} 20... b6
{[%clk 0:02:22.7]} 21. Ne5 {[%clk 0:01:53.1]} 21... c5 {[%clk 0:02:16.8]} 22.
Nc6 {[%clk 0:01:52.8]} 22... Rde8 {[%clk 0:02:14.3]} 23. d5 {[%clk 0:01:46.1]}
23... Bd6 {[%clk 0:02:13.3]} 24. a5 {[%clk 0:01:44.3]} 24... bxa5 {[%clk
0:02:03.4]} 25. c4 {[%clk 0:01:42.9]} 25... f5 {[%clk 0:01:52.9]} 26. Bxa5
{[%clk 0:01:39]} 26... Qf7 {[%clk 0:01:50.6]} 27. f4 {[%clk 0:01:21.7]} 27...
Qh5 {[%clk 0:01:38]} 28. Bc3 {[%clk 0:01:16]} 28... Rf7 {[%clk 0:01:32.1]} 29.
Be5 {[%clk 0:01:13.5]} 29... g5 {[%clk 0:01:16.6]} 30. Bf3 {[%clk 0:01:11.1]}
30... Qh6 {[%clk 0:01:08.8]} 31. Kh1 {[%clk 0:01:09.2]} 31... g4 {[%clk
0:00:55.7]} 32. Be2 {[%clk 0:01:03.2]} 32... Qf8 {[%clk 0:00:55.4]} 33. Rf1
{[%clk 0:00:55.5]} 33... h5 {[%clk 0:00:54.3]} 34. Qb1 {[%clk 0:00:42.6]} 34...
h4 {[%clk 0:00:50.9]} 35. Kg2 {[%clk 0:00:42]} 35... Rh7 {[%clk 0:00:50]} 36.
Bd3 {[%clk 0:00:41.4]} 36... hxg3 {[%clk 0:00:47.1]} 37. hxg3 {[%clk 0:00:26.3]}
37... Qh6 {[%clk 0:00:47.2]} 38. Rh1 {[%clk 0:00:23.2]} 38... Qxh1+ {[%clk
0:00:46.4]} 39. Qxh1 {[%clk 0:00:24.1]} 39... Rxh1 {[%clk 0:00:46]} 40. Kxh1
{[%clk 0:00:25]} 40... Rf8 {[%clk 0:00:43.9]} 41. Kg2 {[%clk 0:00:23.5]} 41...
Kh7 {[%clk 0:00:42.7]} 42. Nxa7 {[%clk 0:00:09.7]} 42... Bxe5 {[%clk 0:00:38.6]}
43. Nxc8 {[%clk 0:00:09.7]} 43... Bc7 {[%clk 0:00:32.6]} 44. Ne7 {[%clk
0:00:08.9]} 44... Kg7 {[%clk 0:00:28.4]} 45. Nxf5+ {[%clk 0:00:08.8]} 45... Kf6
{[%clk 0:00:27.9]} 46. Nh6 {[%clk 0:00:08.4]} 46... Ra8 {[%clk 0:00:21.2]} 47.
Nxg4+ {[%clk 0:00:08.5]} 47... Ke7 {[%clk 0:00:21.6]} 48. Kf3 {[%clk 0:00:09]}
48... Ra3 {[%clk 0:00:20.5]} 49. Ke4 {[%clk 0:00:09.2]} 49... Ra1 {[%clk
0:00:20.4]} 50. Ne3 {[%clk 0:00:09.6]} 50... Re1 {[%clk 0:00:18.6]} 51. g4
{[%clk 0:00:09.3]} 51... Ba5 {[%clk 0:00:18.8]} 52. Kf3 {[%clk 0:00:08.8]} 52...
Bd2 {[%clk 0:00:18]} 53. Nf5+ {[%clk 0:00:09.2]} 53... Kd7 {[%clk 0:00:18]} 54.
g5 {[%clk 0:00:09.6]} 54... Rg1 {[%clk 0:00:17.2]} 55. Ng3 {[%clk 0:00:08.5]}
55... Be1 {[%clk 0:00:16.1]} 56. Ne2 {[%clk 0:00:07.8]} 56... Rf1+ {[%clk
0:00:12.2]} 57. Kg4 {[%clk 0:00:06.9]} 57... Bd2 {[%clk 0:00:10]} 58. g6 {[%clk
0:00:05.8]} 58... Ke7 {[%clk 0:00:09.9]} 59. Kf5 {[%clk 0:00:05.3]} 59... Bc1
{[%clk 0:00:07]} 60. Nxc1 {[%clk 0:00:04.6]} 60... Rxc1 {[%clk 0:00:06]} 61. Ke5
{[%clk 0:00:05.5]} 61... Re1+ {[%clk 0:00:05.8]} 62. Be4 {[%clk 0:00:05.9]}
62... Rd1 {[%clk 0:00:04.8]} 63. f5 {[%clk 0:00:05.9]} 63... Rf1 {[%clk
0:00:04.4]} 64. d6+ {[%clk 0:00:05.9]} 64... Kd7 {[%clk 0:00:04.9]} 65. g7
{[%clk 0:00:05.6]} 65... Rg1 {[%clk 0:00:04.8]} 66. f6 {[%clk 0:00:06.2]} 66...
Rg5+ {[%clk 0:00:04.4]} 67. Bf5+ {[%clk 0:00:06.7]} 67... Kc6 {[%clk 0:00:04.9]}
68. d7 {[%clk 0:00:06.4]} 68... Kc7 {[%clk 0:00:05]} 69. Ke6 {[%clk 0:00:06.9]}
69... Rg3 {[%clk 0:00:03.8]} 70. Kf7 {[%clk 0:00:06.9]} 70... Re3 {[%clk
0:00:03.4]} 71. g8=Q {[%clk 0:00:06.6]} 71... Rd3 {[%clk 0:00:03.3]} 72. Qc8+
{[%clk 0:00:06.6]} 72... Kd6 {[%clk 0:00:03.1]} 73. d8=Q+ {[%clk 0:00:06.6]}
73... Ke5 {[%clk 0:00:03.5]} 74. Qxd3 {[%clk 0:00:06.7]} 74... Kf4 {[%clk
0:00:03.8]} 75. Qe4+ {[%clk 0:00:06.7]} 75... Kg5 {[%clk 0:00:03.8]} 76. Qg4+
{[%clk 0:00:06.6]} 1-0